fUST/lending_fUST_20240725
["ID","MTS","AMOUNT","RATE_DAILY","PERIOD"]
[333102160,1721866246505,-500.0,0.00013972,2]
[333102162,1721866246515,-500.0,0.00013972,2]
[333102163,1721866246524,-816.09,0.00013972,2]
[333102164,1721866246534,-582.98,0.00013972,2]
[333102165,1721866246543,-1106.11,0.00013972,2]
[333102166,1721866246553,-151.0,0.00013972,2]
[333102167,1721866246563,-151.0,0.00013972,2]
[333102168,1721866246573,-500.0,0.00013972,2]
[333102169,1721866246583,-151.0,0.00013972,2]
[333102170,1721866246592,-1861.17,0.00013972,2]
[333102171,1721866246602,-151.0,0.00013972,2]
[333102172,1721866246611,-652.33,0.00013972,2]
[333102173,1721866246621,-500.0,0.00013972,2]
[333102174,1721866246631,-1651.82,0.00013972,2]
[333102175,1721866246641,-152.125492,0.00013972,2]
[333102176,1721866246650,-500.0,0.00013972,2]
[333102177,1721866246660,-500.0,0.00013972,2]
[333102178,1721866246669,-500.0,0.00013972,2]
[333102179,1721866246679,-1819.39,0.00013972,2]
[333102180,1721866246689,-536.16,0.00013972,2]
[333102181,1721866246699,-500.0,0.00013972,2]
[333102182,1721866246708,-465.528082,0.00013972,2]
[333102183,1721866246718,-500.0,0.00013972,2]
[333102184,1721866246727,-1124.44,0.00013972,2]
[333102185,1721866246736,-500.0,0.00013972,2]
[333102186,1721866246746,-465.528082,0.00013972,2]
[333102187,1721866246756,-500.0,0.00013972,2]
[333102188,1721866246765,-500.0,0.00013972,2]
[333102189,1721866246775,-500.0,0.00013972,2]
[333102190,1721866246784,-1122.09,0.00013972,2]
[333102191,1721866246795,-500.0,0.00013972,2]
[333102192,1721866246806,-1222.754355,0.00013972,2]
[333102193,1721866246816,-151.0,0.00013972,2]
[333102194,1721866246826,-500.0,0.00013972,2]
[333102195,1721866246836,-1222.754355,0.00013972,2]
[333102196,1721866246847,-151.0,0.00013972,2]
[333102197,1721866246858,-500.0,0.00013972,2]
[333102198,1721866246868,-500.0,0.00013972,2]
[333102199,1721866246878,-502.31498446,0.00013972,2]
[333102200,1721866246889,-374.31411848,0.00013972,2]
[333102201,1721866246898,-500.0,0.00013972,2]
[333102202,1721866246907,-512.73288038,0.00013972,2]
[333102203,1721866246918,-500.0,0.00013972,2]
[333102204,1721866246928,-672.4,0.00013972,2]
[333102205,1721866246939,-839.75,0.00013972,2]
[333102206,1721866246948,-383.004153,0.00013972,2]
[333102207,1721866246958,-383.004153,0.00013972,2]
[333102208,1721866246968,-151.0,0.00013972,2]
[333102209,1721866246978,-500.0,0.00013972,2]
[333102210,1721866246988,-500.0,0.00013972,2]
[333102211,1721866246998,-500.0,0.00013972,2]
[333102212,1721866247009,-4096.13,0.00013972,2]
[333102213,1721866247019,-500.0,0.00013972,2]
[333102214,1721866247029,-2180.71,0.00013972,2]
[333102215,1721866247040,-1656.52,0.00013972,2]
[333102216,1721866247050,-500.0,0.00013972,2]
[333102217,1721866247059,-826.07,0.00013972,2]
[333102218,1721866247069,-500.0,0.00013972,2]
[333102219,1721866247079,-500.0,0.00013972,2]
[333102220,1721866247089,-500.0,0.00013972,2]
[333102221,1721866247099,-500.0,0.00013972,2]
[333102222,1721866247108,-187.319809,0.00013972,2]
[333102223,1721866247118,-3725.11,0.00013972,2]
[333102224,1721866247129,-500.0,0.00013972,2]
[333102225,1721866247138,-151.0,0.00013972,2]
[333102226,1721866247147,-2073.57,0.00013972,2]
[333102227,1721866247157,-500.0,0.00013972,2]
[333102228,1721866247166,-500.0,0.00013972,2]
[333102229,1721866247177,-1819.03,0.00013972,2]
[333102230,1721866247187,-3639.57,0.00013972,2]
[333102231,1721866247197,-500.0,0.00013972,2]
[333102232,1721866247207,-1406.89,0.00013972,2]
[333102233,1721866247217,-1746.58,0.00013972,2]
[333102234,1721866247226,-4172.26,0.00013972,2]
[333102235,1721866247236,-330.513647,0.00013972,2]
[333102236,1721866247245,-504.66,0.00013972,2]
[333102237,1721866247255,-677.68,0.00013972,2]
[333102238,1721866247264,-500.0,0.00013972,2]
[333102239,1721866247274,-330.513647,0.00013972,2]
[333102240,1721866247287,-151.0,0.00013972,2]
[333102241,1721866247297,-151.0,0.00013972,2]
[333102242,1721866247306,-500.0,0.00013972,2]
[333102243,1721866247316,-151.0,0.00013972,2]
[333102244,1721866247326,-567.01,0.00013972,2]
[333102245,1721866247336,-751.05,0.00013972,2]
[333102246,1721866247345,-500.0,0.00013972,2]
[333102247,1721866247355,-500.0,0.00013972,2]
[333102248,1721866247365,-690.59,0.00013972,2]
[333102249,1721866247374,-12613.61,0.00013972,2]
[333102250,1721866247385,-500.0,0.00013972,2]
[333102251,1721866247395,-500.0,0.00013972,2]
[333102252,1721866247404,-500.0,0.00013972,2]
[333102253,1721866247414,-500.0,0.00013972,2]
[333102254,1721866247424,-5958.86,0.00013972,2]
[333102255,1721866247433,-500.0,0.00013972,2]
[333102256,1721866247443,-500.0,0.00013972,2]
[333102257,1721866247453,-1221.86,0.00013972,2]
[333102258,1721866247464,-481.14625723,0.00013972,2]
[333102259,1721866247474,-1414.0,0.00013972,2]
[333102260,1721866247485,-2308.91,0.00013972,2]
[333102261,1721866247495,-699.33,0.00013972,2]
[333102262,1721866247505,-456.68955826,0.00013972,2]
[333102263,1721866247515,-500.0,0.00013972,2]
[333102264,1721866247525,-2375.31,0.00013972,2]
[333102265,1721866247535,-500.0,0.00013972,2]
[333102266,1721866247545,-778.02,0.00013972,2]
[333102267,1721866247555,-503.43694253,0.00013972,2]
[333102268,1721866247564,-500.0,0.00013972,2]
[333102269,1721866247574,-500.0,0.00013972,2]
[333102270,1721866247584,-2594.18,0.00013972,2]
[333102271,1721866247594,-1423.06,0.00013972,2]
[333102272,1721866247604,-506.79763498,0.00013972,2]
[333102273,1721866247614,-675.46,0.00013972,2]
[333102274,1721866247623,-931.49,0.00013972,2]
[333102275,1721866247633,-500.0,0.00013972,2]
[333102276,1721866247643,-500.0,0.00013972,2]
[333102277,1721866247653,-1115.12,0.00013972,2]
[333102278,1721866247662,-4217.31,0.00013972,2]
[333102279,1721866247672,-9434.7,0.00013972,2]
[333102280,1721866247683,-985.605703,0.00013972,2]
[333102281,1721866247694,-985.605703,0.00013972,2]
[333102282,1721866247705,-1090.735009,0.00013972,2]
[333102283,1721866247719,-1090.735009,0.00013972,2]
[333102284,1721866247728,-500.0,0.00013972,2]
[333102285,1721866247738,-500.0,0.00013972,2]
[333102286,1721866247750,-985.605703,0.00013972,2]
[333102287,1721866247760,-985.605703,0.00013972,2]
[333102288,1721866247770,-500.0,0.00013972,2]
[333102289,1721866247780,-1090.735009,0.00013972,2]
[333102290,1721866247789,-500.0,0.00013972,2]
[333102291,1721866247802,-784.59,0.00013972,2]
[333102292,1721866247818,-1090.735009,0.00013972,2]
[333102293,1721866247878,-500.0,0.00013972,2]
[333102294,1721866248010,-683.21,0.00013972,2]
[333102295,1721866248062,-500.0,0.00013972,2]
[333102296,1721866248192,-4828.36,0.00013972,2]
[333102297,1721866248258,-500.0,0.00013972,2]
[333102298,1721866248394,-500.0,0.00013972,2]
[333102299,1721866248477,-500.0,0.00013972,2]
[333102300,1721866248570,-500.0,0.00013972,2]
[333102301,1721866248611,-500.0,0.00013972,2]
[333102302,1721866248627,-1299.93,0.00013972,2]
[333102303,1721866248638,-500.0,0.00013972,2]
[333102304,1721866248647,-1623.49,0.00013972,2]
[333102305,1721866248657,-1718.38,0.00013972,2]
[333102306,1721866248667,-1015.41,0.00013972,2]
[333102307,1721866248677,-1722.83,0.00013972,2]
[333102308,1721866248687,-1063.58,0.00013972,2]
[333102309,1721866248817,-500.0,0.00013972,2]
[333102310,1721866248843,-500.0,0.00013972,2]
[333102311,1721866248854,-1952.85,0.00013972,2]
[333102312,1721866248864,-852.47,0.00013972,2]
[333102313,1721866248874,-1063.34,0.00013972,2]
[333102314,1721866248886,-500.0,0.00013972,2]
[333102315,1721866248896,-4066.05,0.00013972,2]
[333102316,1721866248906,-8724.8,0.00013972,2]
[333102317,1721866248916,-500.0,0.00013972,2]
[333102318,1721866248927,-500.0,0.00013972,2]
[333102319,1721866248939,-500.0,0.00013972,2]
[333102320,1721866248950,-1945.06,0.00013972,2]
[333102321,1721866248961,-2032.5,0.00013972,2]
[333102322,1721866248971,-834.5,0.00013972,2]
[333102323,1721866248981,-500.0,0.00013972,2]
[333102324,1721866248991,-500.0,0.00013972,2]
[333102325,1721866249001,-500.0,0.00013972,2]
[333102326,1721866249011,-500.0,0.00013972,2]
[333102327,1721866249021,-500.0,0.00013972,2]
[333102328,1721866249031,-500.0,0.00013972,2]
[333102329,1721866249042,-375.4855311,0.00013972,2]
[333102330,1721866249053,-649.64,0.00013972,2]
[333102331,1721866249063,-535.7,0.00013972,2]
[333102332,1721866249073,-150.112233,0.00014,2]
[333102333,1721866249083,-150.112233,0.00014,2]
[333102334,1721866249093,-150.112233,0.00014,2]
[333102335,1721866249104,-150.112233,0.00014,2]
[333102336,1721866249114,-799.12087243,0.00014034,2]
[333102337,1721866249124,-465.528082,0.00014034,2]
[333102338,1721866249134,-465.528082,0.00014034,2]
[333102339,1721866249146,-151.0,0.00014034,2]
[333102340,1721866249156,-151.0,0.00014034,2]
[333102341,1721866249165,-383.004153,0.00014034,2]
[333102342,1721866249176,-383.004153,0.00014034,2]
[333102343,1721866249186,-620.58891264,0.00014043,2]
[333102344,1721866249206,-150.112233,0.000141,2]
[333102345,1721866249216,-150.112233,0.000141,2]
[333102346,1721866249227,-150.112233,0.000141,2]
[333102347,1721866249237,-150.112233,0.000141,2]
[333102348,1721866249247,-262.194402,0.00014103,2]
[333102349,1721866249258,-151.0,0.00014133,2]
[333102350,1721866249267,-151.0,0.00014133,2]
[333102351,1721866249276,-330.513647,0.00014133,2]
[333102352,1721866249286,-330.513647,0.00014133,2]
[333102353,1721866249296,-7523.67009285,0.00014143,2]
[333102354,1721866249305,-676.80268643,0.00014143,2]
[333102355,1721866249316,-31086.22371788,0.00014143,2]
[333102356,1721866249327,-275.886566,0.00014143,2]
[333102357,1721866249337,-275.886566,0.00014143,2]
[333102358,1721866249348,-336.123408,0.00014143,2]
[333102359,1721866249358,-336.123408,0.00014143,2]
[333102360,1721866249369,-151.0,0.00014143,2]
[333102361,1721866249379,-1222.754355,0.00014143,2]
[333102362,1721866249390,-1222.754355,0.00014143,2]
[333102363,1721866249401,-150.112233,0.000142,2]
[333102364,1721866249411,-1409.0,0.00014219,2]
[333102365,1721866249422,-151.0,0.00014226,2]
[333102366,1721866249433,-1090.735009,0.00014226,2]
[333102367,1721866249448,-1090.735009,0.00014226,2]
[333102368,1721866249457,-308.355804,0.00014236,2]
[333102369,1721866249469,-308.355804,0.00014236,2]
[333102370,1721866249479,-39773.81681639,0.00014246,5]
[333102371,1721866249488,-511.80856105,0.00014246,2]
[333102372,1721866249498,-151.0,0.00014246,2]
[333102373,1721866249508,-184.8093,0.00014246,2]
[333102374,1721866249518,-500.0,0.00014246,2]
[333102375,1721866249528,-157.662597,0.00014246,2]
[333102376,1721866249538,-500.0,0.00014246,2]
[333102377,1721866249547,-500.0,0.00014246,2]
[333102378,1721866249557,-500.0,0.00014246,2]
[333102379,1721866249567,-500.0,0.00014246,2]
[333102380,1721866249578,-500.0,0.00014246,2]
[333102381,1721866249588,-501.48343815,0.00014246,2]
[333102382,1721866249598,-151.0,0.00014246,2]
[333102383,1721866249608,-151.0,0.00014246,2]
[333102384,1721866249618,-500.0,0.00014246,2]
[333102385,1721866249629,-500.0,0.00014246,2]
[333102386,1721866249639,-500.0,0.00014246,2]
[333102387,1721866249650,-151.0,0.00014246,2]
[333102388,1721866249660,-500.0,0.00014246,2]
[333102389,1721866249670,-500.0,0.00014246,2]
[333102390,1721866249680,-500.0,0.00014246,2]
[333102391,1721866249694,-189.09951702,0.00014246,2]
[333102392,1721866249706,-500.0,0.00014246,2]
[333102393,1721866249716,-500.0,0.00014246,2]
[333102394,1721866249725,-500.0,0.00014246,2]
[333102395,1721866249735,-500.0,0.00014246,2]
[333102396,1721866249745,-500.0,0.00014246,2]
[333102397,1721866249755,-500.0,0.00014246,2]
[333102398,1721866249767,-1225.34,0.00014246,2]
[333102399,1721866249779,-500.0,0.00014246,2]
[333102400,1721866249790,-500.0,0.00014246,2]
[333102401,1721866249804,-500.0,0.00014246,2]
[333102402,1721866249814,-420.42767226,0.00014246,2]
[333102403,1721866249975,-79.57232774,0.00014246,2]
[333102404,1721866249985,-500.0,0.00014246,2]
[333102405,1721866249996,-3259.73,0.00014246,2]
[333102406,1721866250007,-529.64,0.00014246,2]
[333102407,1721866250017,-500.0,0.00014246,2]
[333102408,1721866250028,-500.0,0.00014246,2]
[333102409,1721866250039,-500.0,0.00014246,2]
[333102410,1721866250049,-1576.59,0.00014246,2]
[333102411,1721866250059,-1082.63,0.00014246,2]
[333102412,1721866250069,-500.0,0.00014246,2]
[333102413,1721866250078,-500.0,0.00014246,2]
[333102414,1721866250088,-500.0,0.00014246,2]
[333102415,1721866250098,-275.886566,0.00014246,2]
[333102416,1721866250108,-308.355804,0.00014246,2]
[333102417,1721866250118,-275.886566,0.00014246,2]
[333102418,1721866250128,-308.355804,0.00014246,2]
[333102419,1721866250139,-500.0,0.00014246,2]
[333102420,1721866250149,-275.886566,0.00014246,2]
[333102421,1721866250159,-308.355804,0.00014246,2]
[333102422,1721866250169,-275.886566,0.00014246,2]
[333102423,1721866250181,-308.355804,0.00014246,2]
[333102424,1721866250194,-505.37,0.00014246,2]
[333102425,1721866250205,-518.34,0.00014246,2]
[333102426,1721866250215,-500.0,0.00014246,2]
[333102427,1721866250225,-181.63295852,0.00014246,2]
[333102428,1721866250236,-500.0,0.00014246,2]
[333102429,1721866250246,-500.0,0.00014246,2]
[333102430,1721866250256,-756.29,0.00014246,2]
[333102431,1721866250267,-1887.07,0.00014246,2]
[333102432,1721866250277,-697.9,0.00014246,2]
[333102433,1721866250289,-605.82,0.00014246,2]
[333102434,1721866250300,-500.0,0.00014246,2]
[333102435,1721866250312,-1212.05,0.00014246,2]
[333102436,1721866250322,-500.0,0.00014246,2]
[333102437,1721866250334,-500.0,0.00014246,2]
[333102438,1721866250346,-500.0,0.00014246,2]
[333102439,1721866250358,-193.61186129,0.00014246,2]
[333102440,1721866250369,-1821.63,0.00014246,2]
[333102441,1721866250380,-500.0,0.00014246,2]
[333102442,1721866250392,-1342.12,0.00014246,2]
[333102443,1721866250403,-1495.18,0.00014246,2]
[333102444,1721866250413,-500.0,0.00014246,2]
[333102445,1721866250423,-352.08066253,0.00014246,2]
[333102446,1721866250435,-439.47,0.00014246,2]
[333102447,1721866250447,-500.0,0.00014246,2]
[333102448,1721866250459,-500.0,0.00014246,2]
[333102449,1721866250470,-500.0,0.00014246,2]
[333102450,1721866250479,-500.0,0.00014246,2]
[333102451,1721866250489,-500.0,0.00014246,2]
[333102452,1721866250500,-1817.05,0.00014246,2]
[333102453,1721866250512,-802.09,0.00014246,2]
[333102454,1721866250524,-1090.74,0.00014246,2]
[333102455,1721866250536,-393.18627762,0.00014246,2]
[333102456,1721866251017,-716.27,0.00013698,2]
[333102457,1721866251026,-500.0,0.00013698,2]
[333102458,1721866251037,-500.0,0.00013698,2]
[333102459,1721866251047,-500.0,0.00013698,2]
[333102460,1721866251058,-201.68395204,0.00013698,2]
[333102461,1721866251068,-151.0,0.00013952,2]
[333102462,1721866251079,-500.0,0.00013972,2]
[333102463,1721866251090,-716.27,0.00013972,2]
[333102464,1721866251101,-151.0,0.00013972,2]
[333102465,1721866251111,-151.0,0.00014143,2]
[333102466,1721866251122,-2.3434617,0.00014246,2]
[333102467,1721866251140,-123.08026068,0.00014246,2]
[333102468,1721866251151,-500.0,0.00014246,2]
[333102469,1721866251160,-336.123408,0.00014246,2]
[333102470,1721866251170,-336.123408,0.00014246,2]
[333102471,1721866251180,-1705.53,0.00014246,2]
[333102472,1721866251191,-500.0,0.00014246,2]
[333102473,1721866251201,-336.123408,0.00014246,2]
[333102474,1721866251210,-336.123408,0.00014246,2]
[333102475,1721866251219,-500.0,0.00014246,2]
[333102476,1721866251229,-1207.3,0.00014246,2]
[333102477,1721866251239,-638.11,0.00014246,2]
[333102478,1721866251248,-500.0,0.00014246,2]
[333102479,1721866251260,-151.0,0.00014246,2]
[333102480,1721866251270,-87.27861835,0.00014246,2]
[333102481,1721866251514,-500.0,0.00013698,2]
[333102482,1721866251524,-1338.89138165,0.00014246,2]
[333102483,1721866251535,-500.0,0.00014246,2]
[333102484,1721866251544,-500.0,0.00014246,2]
[333102485,1721866251555,-500.0,0.00014246,2]
[333102486,1721866251566,-783.26,0.00014246,2]
[333102487,1721866251577,-823.05,0.00014246,2]
[333102488,1721866251586,-500.0,0.00014246,2]
[333102489,1721866251596,-519.01,0.00014246,2]
[333102490,1721866251605,-1615.0,0.00014246,2]
[333102491,1721866251615,-500.0,0.00014246,2]
[333102492,1721866251624,-500.0,0.00014246,2]
[333102493,1721866251634,-816.09,0.00014246,2]
[333102494,1721866251645,-582.98,0.00014246,2]
[333102495,1721866251654,-1106.11,0.00014246,2]
[333102496,1721866251664,-151.0,0.00014246,2]
[333102497,1721866251674,-151.0,0.00014246,2]
[333102498,1721866251683,-500.0,0.00014246,2]
[333102499,1721866251829,-1861.17,0.00014246,2]
[333102500,1721866251839,-652.33,0.00014246,2]
[333102501,1721866251851,-500.0,0.00014246,2]
[333102502,1721866251862,-151.0,0.00014246,2]
[333102503,1721866251873,-235.869078,0.00014246,2]
[333102504,1721866251884,-1651.82,0.00014246,2]
[333102505,1721866251895,-500.0,0.00014246,2]
[333102506,1721866251906,-1819.39,0.00014246,2]
[333102507,1721866251916,-463.02214837,0.00014246,2]
[333102508,1721866251930,-73.13785163,0.00014246,2]
[333102509,1721866251941,-500.0,0.00014246,2]
[333102510,1721866251949,-365.65233989,0.00014246,2]
[333102511,1721866251966,-134.34766011,0.00014246,2]
[333102512,1721866251975,-465.528082,0.00014246,2]
[333102513,1721866251984,-465.528082,0.00014246,2]
[333102514,1721866251994,-1124.44,0.00014246,2]
[333102515,1721866252003,-465.528082,0.00014246,2]
[333102516,1721866252012,-384.59665301,0.00014246,2]
[333102517,1721866252374,-178.509918,0.00012,2]
[333102518,1721866252386,-500.0,0.00013698,2]
[333102519,1721866252397,-158.339032,0.00013952,2]
[333102520,1721866252407,-261.678414,0.00013957,2]
[333102521,1721866252417,-80.93142899,0.00014246,2]
[333102522,1721866252430,-500.0,0.00014246,2]
[333102523,1721866252442,-500.0,0.00014246,2]
[333102524,1721866252453,-1122.09,0.00014246,2]
[333102525,1721866252466,-500.0,0.00014246,2]
[333102526,1721866252476,-1222.754355,0.00014246,2]
[333102527,1721866252487,-500.0,0.00014246,2]
[333102528,1721866252500,-1222.754355,0.00014246,2]
[333102529,1721866252510,-151.0,0.00014246,2]
[333102530,1721866252520,-151.0,0.00014246,2]
[333102531,1721866252533,-1222.754355,0.00014246,2]
[333102532,1721866252544,-1222.754355,0.00014246,2]
[333102533,1721866252554,-151.0,0.00014246,2]
[333102534,1721866252564,-151.0,0.00014246,2]
[333102535,1721866252574,-227.16455224,0.00014246,2]
[333102536,1721866252585,-500.0,0.00014246,2]
[333102537,1721866252595,-672.4,0.00014246,2]
[333102538,1721866252607,-839.75,0.00014246,2]
[333102539,1721866252620,-383.004153,0.00014246,2]
[333102540,1721866252631,-383.004153,0.00014246,2]
[333102541,1721866252643,-383.004153,0.00014246,2]
[333102542,1721866252654,-383.004153,0.00014246,2]
[333102543,1721866252665,-151.0,0.00014246,2]
[333102544,1721866252676,-151.0,0.00014246,2]
[333102545,1721866252686,-500.0,0.00014246,2]
[333102546,1721866252699,-500.0,0.00014246,2]
[333102547,1721866252710,-500.0,0.00014246,2]
[333102548,1721866252720,-1372.15611229,0.00014246,2]
[333102549,1721866252736,-808.55388771,0.00014246,2]
[333102550,1721866252746,-1656.52,0.00014246,2]
[333102551,1721866252756,-275.6136022,0.00014246,2]
[333102552,1721866252770,-224.3863978,0.00014246,2]
[333102553,1721866252781,-826.07,0.00014246,2]
[333102554,1721866252791,-500.0,0.00014246,2]
[333102555,1721866252806,-500.0,0.00014246,2]
[333102556,1721866252817,-500.0,0.00014246,2]
[333102557,1721866252828,-500.0,0.00014246,2]
[333102558,1721866252837,-105.43909354,0.00014246,2]
[333102559,1721866252851,-721.219865,0.00014246,2]
[333102560,1721866252863,-2258.84964334,0.00014246,2]
[333102561,1721866252878,-313.24405252,0.00014246,2]
[333102562,1721866252889,-326.3573456,0.00014246,2]
[333102563,1721866252899,-300.12596697,0.00014246,2]
[333102568,1721867244147,-685.43094911,9.8e-05,2]
[333102569,1721867244172,-200.0,9.9e-05,2]
[333102570,1721867244193,-200.0,9.9e-05,2]
[333102571,1721867244215,-300.0,9.998e-05,2]
[333102572,1721867244236,-243.0,9.998e-05,2]
[333102573,1721867244257,-248.85342551,9.999e-05,2]
[333102574,1721867244278,-284.58975313,9.999e-05,2]
[333102575,1721867254108,-575.93183894,9.899e-05,2]
[333102576,1721867254130,-151.98777047,9.999e-05,2]
[333102577,1721867254153,-313.17539498,9.999e-05,2]
[333102578,1721867254176,-341.66678597,9.999e-05,2]
[333102579,1721867254199,-303.86927624,9.999e-05,2]
[333102582,1721867353129,-300.0,9.702e-05,2]
[333102583,1721867353151,-200.0,9.71e-05,2]
[333102584,1721867353174,-200.0,9.71e-05,2]
[333102585,1721867353199,-273.8276321,9.93e-05,2]
[333102586,1721867353221,-300.0,9.998e-05,2]
[333102587,1721867353244,-300.0,9.998e-05,2]
[333102588,1721867353265,-292.48169793,9.999e-05,2]
[333102589,1721867353286,-155.88216651,9.999e-05,2]
[333102590,1721867353307,-206.6937542,9.999e-05,2]
[333102591,1721867353328,-319.42400333,9.999e-05,2]
[333102592,1721867353349,-463.68134874,9.999e-05,2]
[333102593,1721867353369,-154.91450065,9.999e-05,2]
[333102594,1721867353389,-1625.75328864,9.999e-05,2]
[333102595,1721867353410,-450.36914878,0.0001,2]
[333102596,1721867353432,-189.0286711,0.00010307,2]
[333102597,1721867353457,-24900.0,0.00010431,2]
[333102598,1721867353480,-2736.8027557,0.00010443,2]
[333102599,1721867353504,-358.82,0.00010959,2]
[333102600,1721867353528,-299.02,0.00010959,2]
[333102601,1721867353550,-249.18,0.00010959,2]
[333102602,1721867353573,-207.65,0.00010959,2]
[333102603,1721867353595,-420.0,0.00010998,2]
[333102604,1721867353615,-300.0,0.00010998,2]
[333102605,1721867353636,-400.0,0.0001108,2]
[333102606,1721867353657,-269.78792568,0.0001108,2]
[333102607,1721867353676,-200.4627895,0.0001129,2]
[333102608,1721867353698,-250.0,0.00011375,2]
[333102609,1721867353718,-350.0,0.00011397,2]
[333102610,1721867353740,-250.0,0.00011406,2]
[333102611,1721867353762,-250.0,0.00011438,2]
[333102612,1721867353785,-250.0,0.00011469,2]
[333102613,1721867353811,-250.0,0.000115,2]
[333102614,1721867353834,-250.0,0.00011531,2]
[333102615,1721867353857,-250.0,0.00011562,2]
[333102616,1721867353881,-250.0,0.00011594,2]
[333102617,1721867353903,-250.0,0.00011625,2]
[333102618,1721867353926,-250.0,0.00011656,2]
[333102619,1721867353948,-250.0,0.00011687,2]
[333102620,1721867353971,-250.0,0.00011718,2]
[333102621,1721867353995,-250.0,0.0001175,2]
[333102622,1721867354017,-250.0,0.00011781,2]
[333102623,1721867354041,-250.0,0.00011812,2]
[333102624,1721867354062,-250.0,0.00011843,2]
[333102625,1721867354085,-250.0,0.00011874,2]
[333102626,1721867354110,-250.0,0.00011906,2]
[333102627,1721867354134,-250.0,0.00011937,2]
[333102628,1721867354159,-250.0,0.00011968,2]
[333102629,1721867354184,-587.0,0.00012098,2]
[333102630,1721867354206,-162.91507642,0.0001212,2]
[333102631,1721867354228,-154.72922386,0.0001212,2]
[333102632,1721867354248,-287.45478261,0.0001212,2]
[333102633,1721867354269,-403.29212142,0.0001212,2]
[333102634,1721867354292,-175.45353333,0.0001212,2]
[333102635,1721867354315,-783.33799567,0.0001212,2]
[333102636,1721867355040,201.4623089,0.00025,120]
[333102637,1721867357645,173.04,0.00010959,2]
[333102638,1721867365841,248.85342551,0.0001212,2]
[333102639,1721867368398,865.24,0.00010959,2]
[333102640,1721867371393,748.69799232,9.999e-05,2]
[333102641,1721867371417,1358.22215942,9.999e-05,2]
[333102648,1721867386025,113.27912147,9.999e-05,2]
[333102680,1721867431877,-300.0,9.998e-05,2]
[333102681,1721867431889,-400.89658288,9.999e-05,2]
[333102689,1721867437881,-12650.33075884,9.999e-05,2]
[333102690,1721867437893,-2791.60333867,9.999e-05,2]
[333102691,1721867437903,-200.0,0.0001,2]
[333102692,1721867437914,-420.0,0.00010998,2]
[333102693,1721867437924,-102.10074256,0.0001137,2]
[333102694,1721867437938,-297.89925744,0.0001137,2]
[333102695,1721867437949,-520.88244843,0.00012098,2]
[333102696,1721867438202,-66.11755157,0.00012098,2]
[333102697,1721867438214,-479.33153452,0.0001212,2]
[333102698,1721867438224,-319.37459379,0.0001212,2]
[333102699,1721867438236,-4056.792128,0.00012319,2]
[333102700,1721867438246,-1529.0830359,0.00012319,2]
[333102701,1721867438256,-1002.61770105,0.00012899,2]
[333102702,1721867438267,-600.0,0.00013147,2]
[333102703,1721867438276,-200.0,0.00013425,2]
[333102704,1721867438286,-2000.0,0.00013598,2]
[333102705,1721867438295,-6525.5661,0.000136,2]
[333102706,1721867438304,-50772.8186324,0.00013688,2]
[333102707,1721867438315,-3715.05419339,0.00013688,2]
[333102708,1721867438327,-47941.59016221,0.00013688,2]
[333102709,1721867438338,-500.0,0.00013698,2]
[333102710,1721867438347,-500.0,0.00013698,2]